fUSD/lending_fUSD_20260221
["ID","MTS","AMOUNT","RATE_DAILY","PERIOD"]
[406298825,1771699863645,-1114.271033,0.00041096,120]
[406298826,1771699863655,-263.649872,0.00041096,120]
[406298827,1771699863664,-2200.385213,0.00041096,120]
[406298828,1771699863674,-398.435818,0.00041096,120]
[406298829,1771699863683,-1114.271033,0.00041096,120]
[406298830,1771699863693,-263.649872,0.00041096,120]
[406298831,1771699863702,-2200.385213,0.00041096,120]
[406298832,1771699863712,-398.435818,0.00041096,120]
[406298833,1771699863721,-1114.271033,0.00041096,120]
[406298834,1771699863731,-398.435818,0.00041096,120]
[406298835,1771699863741,-1114.271033,0.00041096,120]
[406298836,1771699863750,-151.0,0.00041096,120]
[406298837,1771699863760,-151.0,0.00041096,120]
[406298838,1771699863769,-151.0,0.00041096,120]
[406298839,1771699863778,-151.0,0.00041096,120]
[406298840,1771699863787,-151.0,0.00041096,120]
[406298841,1771699863797,-151.0,0.00041096,120]
[406298842,1771699863806,-426.745295,0.00041096,120]
[406298843,1771699863815,-426.745295,0.00041096,120]
[406298844,1771699863824,-426.745295,0.00041096,120]
[406298845,1771699863833,-426.745295,0.00041096,120]
[406298846,1771699863842,-160.957926,0.00041096,120]
[406298847,1771699863851,-151.0,0.00041096,120]
[406298848,1771699863860,-151.0,0.00041096,120]
[406298849,1771699863869,-198.990269,0.00041096,120]
[406298850,1771699863879,-198.990269,0.00041096,120]
[406298851,1771699863889,-680.208125,0.00041096,120]
[406298852,1771699863899,-198.990269,0.00041096,120]
[406298853,1771699863909,-680.208125,0.00041096,120]
[406298854,1771699863919,-198.990269,0.00041096,120]
[406298855,1771699863931,-325.537551,0.00041096,7]
[406298856,1771699863940,-680.208125,0.00041096,120]
[406298857,1771699863950,-325.537551,0.00041096,7]
[406298858,1771699863959,-680.208125,0.00041096,120]
[406298859,1771699863970,-325.537551,0.00041096,7]
[406298860,1771699863980,-325.537551,0.00041096,7]
[406298861,1771699863991,-151.0,0.00041096,120]
[406298862,1771699864001,-180.905703,0.00041096,120]
[406298863,1771699864011,-180.905703,0.00041096,120]
[406298864,1771699864020,-180.905703,0.00041096,120]
[406298865,1771699864029,-166.880652,0.00041096,120]
[406298866,1771699864039,-545.577193,0.00041096,120]
[406298867,1771699864048,-180.905703,0.00041096,120]
[406298868,1771699864057,-166.880652,0.00041096,120]
[406298869,1771699864066,-396.381335,0.00041096,120]
[406298870,1771699864076,-151.0,0.00041096,120]
[406298871,1771699864085,-545.577193,0.00041096,120]
[406298872,1771699864094,-151.0,0.00041096,120]
[406298873,1771699864104,-166.880652,0.00041096,120]
[406298874,1771699864113,-396.381335,0.00041096,120]
[406298875,1771699864123,-151.0,0.00041096,120]
[406298876,1771699864132,-545.577193,0.00041096,120]
[406298877,1771699864141,-166.880652,0.00041096,120]
[406298878,1771699864150,-396.381335,0.00041096,120]
[406298879,1771699864160,-545.577193,0.00041096,120]
[406298880,1771699864279,-396.381335,0.00041096,120]
[406298881,1771699864288,-151.0,0.00041096,120]
[406298882,1771699864297,-553.79469,0.00041096,120]
[406298883,1771699864306,-236.735827,0.00041096,120]
[406298884,1771699864316,-169.36997,0.00041096,120]
[406298885,1771699864325,-553.79469,0.00041096,120]
[406298886,1771699864335,-151.0,0.00041096,120]
[406298887,1771699864344,-151.0,0.00041096,31]
[406298888,1771699864354,-154.64,0.000411,14]
[406298889,1771699864363,-298.0,0.00041125,14]
[406298890,1771699864372,-167.45,0.00041247,60]
[406298891,1771699864382,-153.0,0.000413,120]
[406298892,1771699864394,-576.69,0.00041372,120]
[406298893,1771699864406,-500.0,0.00041372,30]
[406298894,1771699864416,-500.0,0.00041372,30]
[406298895,1771699864426,-500.0,0.00041372,120]
[406298896,1771699864436,-500.0,0.00041372,45]
[406298897,1771699864446,-500.0,0.00041372,120]
[406298898,1771699864455,-2794.66739542,0.00041414,120]
[406298899,1771699864465,-7340.74,0.000415,14]
[406298900,1771699864474,-842.0,0.00041644,120]
[406298901,1771699864483,-500.0,0.00041747,2]
[406298902,1771699864492,-152.0,0.00041799,3]
[406298903,1771699864501,-200.0,0.00041968,120]
[406298904,1771699864510,-300.220153,0.00041991,100]
[406298905,1771699864520,-500.0,0.00042,2]
[406298906,1771699864529,-759.0,0.00042,2]
[406298907,1771699864537,-153.0,0.00042,120]
[406298908,1771699864547,-256.28074505,0.00042,42]
[406298909,1771699864557,-160.0,0.00042,120]
[406298910,1771699864566,-150.0,0.00042,3]
[406298911,1771699864575,-2082.47295543,0.00042,120]
[406298912,1771699864584,-173.74378417,0.00042,3]
[406298913,1771699864595,-500.0,0.00042,120]
[406298914,1771699864605,-1367.82189012,0.0004201,2]
[406298915,1771699864615,-842.0,0.00042192,120]
[406298916,1771699864624,-5649.17384252,0.000422,2]
[406298917,1771699864633,-264.498021,0.00042264,120]
[406298918,1771699864642,-70503.0,0.000423,60]
[406298919,1771699864651,-500.0,0.00042438,120]
[406298920,1771699864661,-500.0,0.00042575,120]
[406298921,1771699864670,-153.0,0.000426,120]
[406298922,1771699864680,-510.0,0.00042667,26]
[406298923,1771699864689,-2399.87396866,0.000427,7]
[406298924,1771699864698,-276.3,0.000427,60]
[406298925,1771699864707,-842.0,0.0004274,120]
[406298926,1771699864717,-200.0,0.00042784,7]
[406298927,1771699864728,-200.0,0.00042784,7]
[406298928,1771699864738,-200.0,0.00042784,7]
[406298929,1771699864747,-200.0,0.00042784,7]
[406298930,1771699864757,-200.0,0.00042784,7]
[406298931,1771699864767,-200.0,0.00042784,7]
[406298932,1771699864776,-200.0,0.00042784,7]
[406298933,1771699864786,-200.0,0.00042784,7]
[406298934,1771699864795,-200.0,0.00042784,7]
[406298935,1771699864804,-200.0,0.00042784,7]
[406298936,1771699864814,-200.0,0.00042784,7]
[406298937,1771699864823,-200.0,0.00042784,7]
[406298938,1771699864833,-200.0,0.00042784,7]
[406298939,1771699864842,-200.0,0.00042784,7]
[406298940,1771699864852,-200.0,0.00042784,7]
[406298941,1771699864861,-200.0,0.00042784,7]
[406298942,1771699864870,-200.0,0.00042784,7]
[406298943,1771699864879,-200.0,0.00042784,7]
[406298944,1771699864888,-200.0,0.00042784,7]
[406298945,1771699864897,-200.0,0.00042784,7]
[406298946,1771699864906,-200.0,0.00042784,7]
[406298947,1771699864915,-200.0,0.00042784,7]
[406298948,1771699864925,-200.0,0.00042784,7]
[406298949,1771699864934,-200.0,0.00042784,7]
[406298950,1771699864943,-200.0,0.00042784,7]
[406298951,1771699864952,-200.0,0.00042784,7]
[406298952,1771699864961,-200.0,0.00042784,7]
[406298953,1771699864970,-200.0,0.00042784,7]
[406298954,1771699864979,-200.0,0.00042784,7]
[406298955,1771699864988,-200.0,0.00042784,7]
[406298956,1771699864997,-200.0,0.00042784,7]
[406298957,1771699865006,-200.0,0.00042784,7]
[406298958,1771699865015,-200.0,0.00042784,7]
[406298959,1771699865023,-200.0,0.00042784,7]
[406298960,1771699865034,-200.0,0.00042784,7]
[406298961,1771699865044,-200.0,0.00042784,7]
[406298962,1771699865054,-200.0,0.00042784,7]
[406298963,1771699865063,-200.0,0.00042784,7]
[406298964,1771699865072,-200.0,0.00042784,7]
[406298965,1771699865082,-215.0,0.00042784,7]
[406298966,1771699865091,-200.0,0.00042784,2]
[406298967,1771699865100,-200.0,0.00042784,2]
[406298968,1771699865109,-200.0,0.00042784,2]
[406298969,1771699865119,-200.0,0.00042784,2]
[406298970,1771699865128,-200.0,0.00042784,2]
[406298971,1771699865137,-200.0,0.00042784,2]
[406298972,1771699865146,-200.0,0.00042784,2]
[406298973,1771699865155,-200.0,0.00042784,2]
[406298974,1771699865164,-200.0,0.00042784,2]
[406298975,1771699865173,-200.0,0.00042784,2]
[406298976,1771699865182,-200.0,0.00042784,2]
[406298977,1771699865191,-200.0,0.00042784,2]
[406298978,1771699865200,-200.0,0.00042784,2]
[406298979,1771699865209,-200.0,0.00042784,2]
[406298980,1771699865218,-200.0,0.00042784,2]
[406298981,1771699865227,-200.0,0.00042784,2]
[406298982,1771699865236,-200.0,0.00042784,2]
[406298983,1771699865245,-200.0,0.00042784,2]
[406298984,1771699865255,-309.0,0.00042784,2]
[406298985,1771699865264,-3493.0,0.00042799,2]
[406298986,1771699865274,-618.0,0.00042799,2]
[406298987,1771699865286,-1209.0,0.00042799,2]
[406298988,1771699865295,-1274.0,0.00042799,2]
[406298989,1771699865304,-5976.0,0.00042799,2]
[406298990,1771699865314,-2453.0,0.00042799,2]
[406298991,1771699865323,-7340.74,0.000428,14]
[406298992,1771699865332,-1507.8505441,0.0004282,2]
[406298993,1771699865342,-154.64,0.000429,14]
[406298994,1771699865351,-431.86882771,0.000429,120]
[406298995,1771699865359,-220.0,0.0004295,30]
[406298996,1771699865368,-518.962086,0.00043,120]
[406298997,1771699865379,-991.1,0.00043,30]
[406298998,1771699865388,-959.72089319,0.00043,2]
[406298999,1771699865397,-1723.88658694,0.00043,2]
[406299000,1771699865407,-200.0,0.00043,120]
[406299001,1771699865415,-250.0,0.00043,3]
[406299002,1771699865425,-300.0,0.00043,30]
[406299003,1771699865434,-340.0,0.00043,10]
[406299004,1771699865443,-711.78534868,0.00043,120]
[406299005,1771699865451,-173.74378417,0.00043,7]
[406299006,1771699865461,-150.0,0.00043014,120]
[406299007,1771699865470,-200.0,0.00043068,120]
[406299008,1771699865480,-200.0,0.00043068,120]
[406299009,1771699865488,-246.0,0.00043069,120]
[406299010,1771699865497,-200.0,0.00043129,120]
[406299011,1771699865507,-10973.46975521,0.0004322,2]
[406299012,1771699865516,-153.0,0.000433,120]
[406299013,1771699865525,-150.0,0.00043309,120]
[406299014,1771699865534,-1068.96114361,0.0004344,120]
[406299015,1771699865543,-176.3781679,0.0004345,60]
[406299016,1771699865552,-613.72084174,0.00043573,28]
[406299017,1771699865561,-949.58,0.00043634,120]
[406299018,1771699865570,-864.91152357,0.0004365,120]
[406299019,1771699865579,-70503.0,0.0004365,60]
[406299020,1771699865588,-300.0,0.00043673,10]
[406299021,1771699865597,-150.0,0.00043673,10]
[406299022,1771699865607,-374.80934697,0.00043673,5]
[406299023,1771699865616,-165.05223989,0.00043673,10]
[406299024,1771699865626,-1709.80454793,0.00043731,2]
[406299025,1771699865635,-1000.0,0.000438,30]
[406299026,1771699865644,-2000.0,0.000438,2]
[406299027,1771699865654,-154.03173332,0.00043832,2]
[406299028,1771699865663,-189.13770113,0.00043836,2]
[406299029,1771699865672,-151.0,0.00043836,120]
[406299030,1771699865681,-151.0,0.00043836,120]
[406299031,1771699865690,-151.0,0.00043836,120]
[406299032,1771699865700,-151.0,0.00043836,120]
[406299033,1771699865709,-151.0,0.00043836,120]
[406299034,1771699865719,-183.787107,0.00043836,120]
[406299035,1771699865728,-475.38145872,0.0004384,120]
[406299036,1771699865738,-475.38145872,0.0004384,120]
[406299037,1771699865747,-475.38145872,0.0004384,120]
[406299038,1771699865756,-475.38145872,0.0004384,120]
[406299039,1771699865766,-475.38145872,0.0004384,120]
[406299040,1771699865775,-475.38145872,0.0004384,120]
[406299041,1771699865784,-475.38145872,0.0004384,120]
[406299042,1771699865793,-475.38145872,0.0004384,120]
[406299043,1771699865803,-475.38145872,0.0004384,120]
[406299044,1771699865812,-475.38145872,0.0004384,120]
[406299045,1771699865822,-475.38145872,0.0004384,120]
[406299046,1771699865831,-475.38145872,0.0004384,120]
[406299047,1771699865840,-475.38145872,0.0004384,120]
[406299048,1771699865850,-475.38145872,0.0004384,120]
[406299049,1771699865859,-475.38145872,0.0004384,120]
[406299050,1771699865868,-475.38145872,0.0004384,120]
[406299051,1771699865877,-475.38145872,0.0004384,120]
[406299052,1771699865886,-475.38145872,0.0004384,120]
[406299053,1771699865895,-475.38145872,0.0004384,120]
[406299054,1771699865904,-475.38,0.0004384,120]
[406299055,1771699865914,-1109.22340368,0.0004384,120]
[406299056,1771699865924,-1109.22340368,0.0004384,120]
[406299057,1771699865935,-1109.22340368,0.0004384,120]
[406299058,1771699865946,-1109.22340368,0.0004384,120]
[406299059,1771699865956,-1109.22340368,0.0004384,120]
[406299060,1771699865966,-1109.22340368,0.0004384,120]
[406299061,1771699865975,-1109.22340368,0.0004384,120]
[406299062,1771699865985,-1109.22340368,0.0004384,120]
[406299063,1771699865995,-1109.22340368,0.0004384,120]
[406299064,1771699866004,-1109.22340368,0.0004384,120]
[406299065,1771699866013,-1109.22340368,0.0004384,120]
[406299066,1771699866022,-1109.22340368,0.0004384,120]
[406299067,1771699866031,-1109.22340368,0.0004384,120]
[406299068,1771699866040,-1109.22340368,0.0004384,120]
[406299069,1771699866051,-1109.22340368,0.0004384,120]
[406299070,1771699866060,-1109.22340368,0.0004384,120]
[406299071,1771699866069,-1109.22340368,0.0004384,120]
[406299072,1771699866078,-1109.22340368,0.0004384,120]
[406299073,1771699866087,-1109.22340368,0.0004384,120]
[406299074,1771699866097,-1109.22,0.0004384,120]
[406299075,1771699866106,-3540.81089905,0.000439,2]
[406299076,1771699866115,-452.95210527,0.00043986,120]
[406299077,1771699866124,-151.0,0.00043997,120]
[406299078,1771699866135,-20000.0,0.00044,2]
[406299079,1771699866146,-204.25852786,0.00044,2]
[406299080,1771699866156,-153.0,0.00044,120]
[406299081,1771699866165,-154.64,0.00044,14]
[406299082,1771699866174,-1127.0,0.00044,120]
[406299083,1771699866183,-170.0,0.00044,10]
[406299084,1771699866192,-3200.0,0.00044,120]
[406299085,1771699866201,-228.77760116,0.00044,120]
[406299086,1771699866213,-572.89890933,0.00044,120]
[406299087,1771699866223,-81298.63159191,0.000441,2]
[406299088,1771699866233,-8000.0,0.00044136,120]
[406299089,1771699866243,-713.0,0.0004415,120]
[406299090,1771699866253,-138.05406246,0.00044221,10]
[406299091,1771699866553,-111.94593754,0.00044221,10]
[406299092,1771699866563,-200.0,0.00044289,120]
[406299093,1771699866573,-1502.56387744,0.00044297,10]
[406299094,1771699866582,-997.70184528,0.00044297,10]
[406299095,1771699866592,-1822.77532864,0.00044297,10]
[406299096,1771699866601,-344.77810908,0.00044297,10]
[406299097,1771699866614,-660.03407804,0.00044297,10]
[406299098,1771699866625,-1330.26912706,0.00044297,10]
[406299099,1771699866634,-793.73673986,0.00044297,10]
[406299100,1771699866646,-203.96510542,0.00044297,10]
[406299101,1771699866655,-500.0,0.00044383,2]
[406299102,1771699866664,-162.05812051,0.00044383,2]
[406299103,1771699867111,-300.0,0.00040571,2]
[406299104,1771699867121,-1051.50601158,0.00040571,2]
[406299105,1771699867132,-30.2847658,0.00040571,2]
[406299106,1771699867143,-300.0,0.00040571,2]
[406299107,1771699867156,-553.79469,0.00041096,120]
[406299108,1771699867166,-298.127623,0.00041096,120]
[406299109,1771699867176,-151.0,0.00041096,31]
[406299110,1771699867185,-553.79469,0.00041096,120]
[406299111,1771699867194,-236.735827,0.00041096,120]
[406299112,1771699867204,-151.0,0.00041096,31]
[406299113,1771699867213,-553.79469,0.00041096,120]
[406299114,1771699867223,-236.735827,0.00041096,120]
[406299115,1771699867232,-151.0,0.00041096,31]
[406299116,1771699867242,-236.735827,0.00041096,120]
[406299117,1771699867251,-553.79469,0.00041096,120]
[406299118,1771699867260,-553.79469,0.00041096,120]
[406299119,1771699867270,-151.0,0.00041096,31]
[406299120,1771699867281,-236.735827,0.00041096,120]
[406299121,1771699867291,-236.735827,0.00041096,120]
[406299122,1771699867303,-151.0,0.00041096,31]
[406299123,1771699867315,-553.79469,0.00041096,120]
[406299124,1771699867326,-236.735827,0.00041096,120]
[406299125,1771699867336,-151.0,0.00041096,31]
[406299126,1771699867347,-236.735827,0.00041096,120]
[406299127,1771699867357,-553.79469,0.00041096,120]
[406299128,1771699867368,-151.0,0.00041096,31]
[406299129,1771699867377,-236.735827,0.00041096,120]
[406299130,1771699867386,-553.79469,0.00041096,120]
[406299131,1771699867395,-413.0,0.00042799,2]
[406299132,1771699867405,-337.94187949,0.00044383,2]
[406299133,1771699867414,-368.08323082,0.00044383,2]
[406299134,1771699867435,-236.735827,0.00041096,120]
[406299135,1771699867444,-151.0,0.00041096,31]
[406299136,1771699867454,-131.91676918,0.00044383,2]
[406299137,1771699867463,-500.0,0.00044383,2]
[406299138,1771699867472,-500.0,0.00044383,2]
[406299139,1771699867482,-500.0,0.00044383,2]
[406299140,1771699867491,-500.0,0.00044383,2]
[406299141,1771699867500,-273.96658739,0.00044383,2]
[406299142,1771699867509,-500.0,0.00044383,120]
[406299143,1771699867519,-500.0,0.00044383,120]
[406299144,1771699867528,-500.0,0.00044383,120]
[406299145,1771699867537,-500.0,0.00044383,120]
[406299146,1771699867546,-500.0,0.00044383,120]
[406299147,1771699867555,-500.0,0.00044383,120]
[406299148,1771699867564,-152.10109832,0.00044383,120]
[406299149,1771699867573,-525.03277328,0.00044383,2]
[406299150,1771699867582,-500.0,0.00044383,5]
[406299151,1771699867592,-500.68382304,0.00044383,5]
[406299152,1771699867602,-500.0,0.00044383,2]
[406299153,1771699867611,-500.0,0.00044383,2]
[406299154,1771699867621,-564.29,0.00044383,2]
[406299155,1771699867631,-500.0,0.00044383,2]
[406299156,1771699867640,-500.0,0.00044383,2]
[406299157,1771699867649,-500.0,0.00044383,2]
[406299158,1771699867659,-500.0,0.00044383,2]
[406299159,1771699867672,-500.0,0.00044383,2]
[406299160,1771699867682,-500.0,0.00044383,2]
[406299161,1771699867691,-500.0,0.00044383,2]
[406299162,1771699867700,-500.0,0.00044383,2]
[406299163,1771699867710,-500.0,0.00044383,2]
[406299164,1771699867719,-500.0,0.00044383,2]
[406299165,1771699867728,-500.0,0.00044383,2]
[406299166,1771699867738,-235.79727038,0.00044383,2]
[406299167,1771699867747,-500.0,0.00044383,2]
[406299168,1771699867756,-500.0,0.00044383,2]
[406299169,1771699867766,-500.0,0.00044383,2]
[406299170,1771699867775,-470.72585141,0.00044383,2]
[406299171,1771699867848,-151.0,0.00041096,31]
[406299172,1771699867858,-29.27414859,0.00044383,2]
[406299173,1771699867867,-500.0,0.00044383,2]
[406299174,1771699867877,-474.58800365,0.00044383,2]
[406299175,1771699868166,-25.41199635,0.00044383,2]
[406299176,1771699868175,-500.0,0.00044383,2]
[406299177,1771699868185,-500.0,0.00044383,2]
[406299178,1771699868194,-500.0,0.00044383,2]
[406299179,1771699868203,-500.0,0.00044383,2]
[406299180,1771699868212,-500.0,0.00044383,2]
[406299181,1771699868221,-500.0,0.00044383,2]
[406299182,1771699868230,-500.0,0.00044383,2]
[406299183,1771699868239,-500.0,0.00044383,2]
[406299184,1771699868249,-500.0,0.00044383,2]
[406299185,1771699868258,-500.0,0.00044383,120]
[406299186,1771699868267,-500.0,0.00044383,120]
[406299187,1771699868277,-500.0,0.00044383,120]
[406299188,1771699868288,-500.0,0.00044383,120]
[406299189,1771699868297,-2.08800365,0.00044383,120]
[406299190,1771699868309,-497.91199635,0.00044383,120]
[406299191,1771699868318,-500.0,0.00044383,120]
[406299192,1771699868327,-500.0,0.00044383,120]
[406299193,1771699868336,-500.0,0.00044383,120]
[406299194,1771699868346,-312.37132661,0.00044383,120]
[406299195,1771699868503,300.0,0.00014628,30]
[406299196,1771699897113,1328.111,0.00013032,2]
[406299197,1771699897149,185.45,0.00013032,2]
[406299198,1771699909681,1038.18659829,0.00013198,2]
[406299199,1771699939618,1208.66091693,0.00013198,2]
[406299200,1771699939638,471.56020229,0.00013198,2]
[406299201,1771699968384,537.00573654,0.00013198,2]
[406299202,1771699987937,288.21729714,0.00013198,2]
[406299203,1771700039968,1730.31099715,0.00013198,2]
[406299204,1771700059756,2800.36853202,0.00013198,2]
[406299205,1771700075725,3331.62264958,0.00013198,2]
[406299206,1771700118269,192.14486476,0.00013198,2]
[406299207,1771700169870,648.77972052,0.00013198,2]
[406299208,1771700169893,10000.01,0.00013198,2]
[406299209,1771700169916,10000.01,0.00013198,2]
[406299210,1771700169938,10000.01,0.00013198,2]
[406299211,1771700169960,10000.01,0.00013198,2]
[406299212,1771700169982,10000.01,0.00013198,2]
[406299213,1771700170004,10000.01,0.00013198,2]
[406299214,1771700176830,-1153.54066476,0.00013198,2]
[406299215,1771700176856,-8846.45933524,0.00013198,2]
[406299216,1771700180754,-1866.91235468,0.00013188,2]
[406299217,1771700190103,1045.51171664,0.00013197,3]
[406299218,1771700221269,300.0,0.00013197,2]
[406299219,1771700222252,150.0,0.00013197,2]
[406299220,1771700227827,150.0,0.00013171,2]
[406299221,1771700235941,600.0,0.000108,2]
[406299222,1771700236393,500.0,0.000108,2]
[406299223,1771700237096,600.0,0.000108,2]
[406299224,1771700246562,151.0,0.00013195,2]
[406299225,1771700246925,151.0,0.00013195,2]
[406299226,1771700248552,491.1427738,0.00013098,2]
[406299227,1771700250602,192.14486474,0.00013098,2]
[406299228,1771700253121,172.19524008,0.00013098,2]
[406299229,1771700281377,300.0,0.00013197,2]
[406299230,1771700300318,1244.60823644,0.00013098,2]
[406299231,1771700300726,218.58245894,0.00013098,2]
[406299232,1771700300748,550.4446509,0.00013098,2]
[406299233,1771700306996,500.0,0.00013188,2]
[406299234,1771700341171,300.0,0.00013197,2]
[406299235,1771700367894,151.0,0.00013195,2]
[406299236,1771700368347,151.0,0.00013195,2]
[406299237,1771700368711,151.0,0.00013195,2]
[406299238,1771700370841,192.14486474,0.00013098,2]
[406299239,1771700401254,1200.0,0.00013197,2]
[406299240,1771700401889,150.0,0.00013197,2]
[406299241,1771700407463,444.00968957,0.00013197,2]
[406299242,1771700420522,829.7388243,0.00013098,2]
[406299243,1771700422018,680.1465154,0.00013197,2]
[406299244,1771700422213,680.1465154,0.00013197,2]
[406299245,1771700422251,680.1465154,0.00013197,2]
[406299246,1771700422282,680.1465154,0.00013197,2]
[406299247,1771700422314,680.1465154,0.00013197,2]
[406299248,1771700422346,680.1465154,0.00013197,2]
[406299249,1771700422381,680.1465154,0.00013197,2]
[406299250,1771700422413,619.64636269,0.00013197,2]
[406299251,1771700422439,60.50015271,0.00013197,2]
[406299252,1771700422491,680.1465154,0.00013197,2]
[406299253,1771700422533,680.1465154,0.00013197,2]
[406299254,1771700422567,680.1465154,0.00013197,2]
[406299255,1771700422601,680.1465154,0.00013197,2]
[406299256,1771700422635,680.1465154,0.00013197,2]
[406299257,1771700422671,680.1465154,0.00013197,2]
[406299258,1771700422703,680.1465154,0.00013197,2]
[406299259,1771700422740,680.1465154,0.00013197,2]
[406299260,1771700422775,680.1465154,0.00013197,2]
[406299261,1771700422819,680.1465154,0.00013197,2]
[406299262,1771700422854,680.1465154,0.00013197,2]
[406299263,1771700422887,680.1465154,0.00013197,2]
[406299264,1771700422930,680.1465154,0.00013197,2]
[406299265,1771700422966,680.1465154,0.00013197,2]
[406299266,1771700423002,417.45863169,0.00013197,2]
[406299267,1771700423030,262.68788371,0.00013197,2]
[406299268,1771700423069,680.1465154,0.00013197,2]
[406299269,1771700423104,680.1465154,0.00013197,2]
[406299270,1771700423137,680.1465154,0.00013197,2]
[406299271,1771700423189,680.1465154,0.00013197,2]
[406299272,1771700423227,680.1465154,0.00013197,2]
[406299273,1771700423295,680.1465154,0.00013197,2]
[406299274,1771700423330,680.1465154,0.00013197,2]
[406299275,1771700423410,680.1465154,0.00013197,2]
[406299276,1771700423454,680.1465154,0.00013197,2]
[406299277,1771700423489,680.1465154,0.00013197,2]
[406299278,1771700423535,680.1465154,0.00013197,2]
[406299279,1771700423576,680.1465154,0.00013197,2]
[406299280,1771700423624,680.1465154,0.00013197,2]
[406299281,1771700423676,680.1465154,0.00013197,2]
[406299282,1771700423707,215.27090069,0.00013197,2]
[406299283,1771700423732,464.87561471,0.00013197,2]
[406299284,1771700423775,680.1465154,0.00013197,2]
[406299285,1771700423818,680.1465154,0.00013197,2]
[406299286,1771700423855,680.1465154,0.00013197,2]
[406299287,1771700423899,680.1465154,0.00013197,2]
[406299288,1771700423938,680.1465154,0.00013197,2]
[406299289,1771700423981,680.1465154,0.00013197,2]
[406299290,1771700424023,680.1465154,0.00013197,2]
[406299291,1771700424060,680.1465154,0.00013197,2]
[406299292,1771700424133,680.1465154,0.00013197,2]
[406299293,1771700424236,680.1465154,0.00013197,2]
[406299294,1771700424289,680.1465154,0.00013197,2]
[406299295,1771700425654,213.1333886,0.00013188,2]
[406299296,1771700433966,680.1465154,0.00013197,2]
[406299297,1771700434005,680.1465154,0.00013197,2]
[406299298,1771700434039,480.09629649,0.00013197,2]
[406299299,1771700434062,200.05021891,0.00013197,2]
[406299300,1771700434094,680.1465154,0.00013197,2]
[406299301,1771700434123,680.1465154,0.00013197,2]
[406299302,1771700434152,680.1465154,0.00013197,2]
[406299303,1771700434181,680.1465154,0.00013197,2]
[406299304,1771700434210,680.1465154,0.00013197,2]
[406299305,1771700434244,680.1465154,0.00013197,2]
[406299306,1771700434286,680.1465154,0.00013197,2]
[406299307,1771700434318,680.1465154,0.00013197,2]
[406299308,1771700434358,680.1465154,0.00013197,2]
[406299309,1771700434392,680.1465154,0.00013197,2]
[406299310,1771700434426,680.1465154,0.00013197,2]
[406299311,1771700434487,680.1465154,0.00013197,2]
[406299312,1771700434547,680.1465154,0.00013197,2]
[406299313,1771700434584,680.1465154,0.00013197,2]
[406299314,1771700434617,680.1465154,0.00013197,2]
[406299315,1771700434651,680.1465154,0.00013197,2]
[406299316,1771700434681,680.1465154,0.00013197,2]
[406299317,1771700434711,680.1465154,0.00013197,2]
[406299318,1771700434749,680.1465154,0.00013197,2]
[406299319,1771700434783,680.1465154,0.00013197,2]
[406299320,1771700434816,680.1465154,0.00013197,2]
[406299321,1771700434852,680.1465154,0.00013197,2]
[406299322,1771700434883,680.1465154,0.00013197,2]
[406299323,1771700434917,680.1465154,0.00013197,2]
[406299324,1771700434951,680.1465154,0.00013197,2]